[Event "Charlotte IM-C May 2022"]
[Site "Charlotte"]
[Date "2022.05.05"]
[Round "2.1"]
[White "Martin Del Campo Cardenas, Roberto Abel"]
[Black "Rorrer, Grayson"]
[Result "1/2-1/2"]
[ECO "B51"]
[WhiteElo "2263"]
[BlackElo "2204"]
[Annotator "TA"]
[PlyCount "114"]
[EventDate "2022.05.04"]
[EventType "tourn"]
[EventCountry "USA"]
[SourceTitle "playchess.com"]
[Source "ChessBase"]
[SourceQuality "1"]
[TimeControl "5400+30"]

{[%evp 11,114,14,9,15,12,13,8,12,0,7,24,2,15,7,15,0,16,0,25,0,0,0,86,88,79,74,80,77,77,75,89,78,114,100,177,131,158,158,163,159,163,159,159,35,45,37,35,23,25,13,56,45,102,92,131,131,131,131,126,102,150,77,93,84,80,0,0,0,0,0,0,0,0,0,0,0,0,0,0,0,0,0,0,0,0,0,0,0,0,0,0,0,0,0,0,0,0,0,0,0,0,0,0,0,0]} 1. e4 {[%emt 0:03:18]} c5 {[%emt 0:00:13]} 2. Nf3 {[%emt 0:00:56]} d6 {[%emt 0:00:11]} 3. Bb5+ {[%emt 0:00:39]} Nd7 {[%emt 0:00:10]} 4. d4 {[%emt 0:00:15]} cxd4 {[%emt 0:00:29]} 5. Qxd4 {[%emt 0:00:07]} a6 {[%emt 0:00:38]} 6. Bxd7+ {[%emt 0:00:09]} Bxd7 {[%emt 0:00:09]} 7. c4 {[%emt 0:00:10] 7.Nc3 injects fresh life into this line. B51: Sicilian: Moscow Variation (3 Bb5+) without 3...Bd7.} Nf6 {[%emt 0:02:04]} 8. Bg5 {[%emt 0:04:37]} e6 {[%emt 0:00:27]} 9. Nc3 {[%emt 0:00:44]} Be7 {[%emt 0:01:02]} 10. O-O {[%emt 0:02:29]} Qc7 {[%emt 0:02:34]} 11. Rac1 {[%emt 0:01:18]} O-O {[%emt 0:08:58]} (11... h6 $5 {[%cal Rh6g5]} 12. Be3 e5 $11) 12. Rfd1 {[%emt 0:00:22] Strongly threatening Bxf6.} Rfd8 {[%emt 0:02:15]} 13. b3 {[%emt 0:11:37]} Be8 {[%emt 0:05:37]} 14. h3 {[%emt 0:16:44]} Rac8 {[%emt 0:02:25] [#]} (14... h6 $5 {[%cal Rh6g5]} 15. Be3 Rac8 $11) 15. Nh2 $146 {[%emt 0:11:36]} ({Predecessor:} 15. Be3 Bc6 16. Nd5 exd5 17. cxd5 Qa5 18. dxc6 Rxc6 19. Rxc6 bxc6 20. Qa7 Re8 21. Nd4 Qxa2 22. Nxc6 {½-½ (53) Bozinovic,B (2163)-Genser,H (2285) Hartberg 2004}) 15... Qa5 {[%emt 0:08:44]} 16. Qd2 $36 {[%emt 0:04:36][%cal Oc3d5][%mdl 2048] Black is under pressure.} h6 {[%emt 0:16:26] [#]} (16... Qc7 $11 {remains equal.}) 17. Nd5 $1 $16 {[%emt 0:08:05]} Qxd2 {[%emt 0:01:24]} 18. Nxe7+ {[%emt 0:00:05]} Kf8 {[%emt 0:00:10]} 19. Bxd2 {[%emt 0:00:10]} (19. Rxd2 Kxe7 20. Bxf6+ Kxf6 $11) 19... Kxe7 {[%emt 0:00:09]} 20. Ba5 {[%emt 0:00:12]} Rd7 {[%emt 0:00:45]} 21. f3 {[%emt 0:00:35]} Rc6 {[%emt 0:23:37]} 22. Nf1 {[%emt 0:03:22]} b5 {[%emt 0:02:49]} (22... Nh5 $16) 23. Ne3 {[%emt 0:02:33]} (23. Bb4 $18) 23... bxc4 {[%emt 0:01:09]} 24. Nxc4 {[%emt 0:02:40]} Rb7 {[%emt 0:04:34] Prevents Bb4.} 25. Bc3 {[%emt 0:02:53]} Rb5 {[%emt 0:01:12]} 26. Bb2 {[%emt 0:04:55][%cal Bc3b2,Bb2c1,Bc1a3,Ba3f8][%mdl 32]} d5 {[%emt 0:02:59]} 27. Ne3 {[%emt 0:08:01]} (27. Ba3+ $16 Kd8 28. Bf8) 27... Rxc1 $14 {[%emt 0:00:54]} 28. Bxc1 {[%emt 0:00:01] And now Ba3+ would win.} Bc6 {[%emt 0:00:28]} 29. Ba3+ {[%emt 0:11:51]} Ke8 $1 {[%emt 0:00:53]} 30. Rc1 {[%emt 0:00:00]} Kd7 {[%emt 0:00:59]} (30... d4 $2 31. Rxc6 dxe3 32. Rxa6 $18) 31. e5 {[%emt 0:00:00]} Ne8 {[%emt 0:00:38]} (31... Nh5 $14) 32. Bf8 {[%emt 0:00:00]} h5 {[%emt 0:01:33]} 33. Nc2 {[%emt 0:00:00]} Rb8 {[%emt 0:00:09]} 34. Nd4 {[%emt 0:00:00]} Bb7 {[%emt 0:00:30]} 35. Kf2 {[%emt 0:00:00]} f6 {[%emt 0:00:33]} (35... a5 $142) 36. f4 {[%emt 0:00:00] White is much more active.} ({White should play} 36. Re1) 36... fxe5 $16 {[%emt 0:00:20]} 37. fxe5 {[%emt 0:00:00] Kg1 is the strong threat.} Nf6 {[%emt 0:00:01]} 38. exf6 {[%emt 0:00:00]} (38. Bxg7 $16 Ne4+ 39. Kg1) 38... Rxf8 $11 {[%emt 0:00:23] The position is equal.} 39. Rc7+ $1 {[%emt 0:00:00]} Kxc7 {[%emt 0:00:14]} 40. Nxe6+ {[%emt 0:00:00]} Kd6 {[%emt 0:00:07]} 41. Nxf8 {[%emt 0:00:00]} gxf6 {[%emt 0:00:04][%mdl 4096] Endgame KB-KN} 42. Ng6 {[%emt 0:00:00]} d4 {[%emt 0:05:24]} 43. Nf4 {[%emt 0:00:00]} Ke5 {[%emt 0:00:06]} 44. Nxh5 {[%emt 0:00:00]} d3 $1 {[%emt 0:00:05]} 45. g4 {[%emt 0:03:46] aiming for Ke3.} Kd4 {[%emt 0:00:42]} 46. Ng3 $1 {[%emt 0:00:25]} ({Wrong is} 46. Nxf6 $2 d2 47. Kg3 d1=Q $19) (46. Ke1 Ke3 47. Kd1 Bf3+ 48. Kc1 d2+ 49. Kb2 d1=Q 50. Nxf6 Qd4+ 51. Kb1 Qc3 52. g5 Kd3 53. a3 Qxb3+ 54. Ka1 Kc2 55. Nh7 Qxa3#) 46... d2 {[%emt 0:00:42]} 47. Nf5+ $1 {[%emt 0:00:09]} ({Avoid the trap} 47. Ke2 $2 Kc3 48. Nf5 {[#]} Bf3+ $1 {[%mdl 512]} 49. Kxf3 d1=Q+ $19) 47... Kc3 {[%emt 0:04:20]} (47... Kd3 $5 48. Ne3 Bc8 $11) 48. Ne3 {[%emt 0:00:03]} Be4 {[%emt 0:00:03]} 49. h4 {[%emt 0:01:24]} f5 {[%emt 0:00:37]} 50. gxf5 {[%emt 0:00:55]} Bxf5 {[%emt 0:00:01][%cal Of5g4] Threatens to win with ...Bg4!} 51. h5 {[%emt 0:00:16]} Bh7 {[%emt 0:03:42]} 52. h6 {[%emt 0:00:13]} Bg6 {[%emt 0:00:09]} 53. Kf3 {[%emt 0:01:51]} Kb2 {[%emt 0:02:13]} 54. Nc4+ {[%emt 0:01:20]} Kc1 {[%emt 0:00:00]} 55. Ne3 {[%emt 0:02:38]} Kb2 {[%emt 0:00:00]} 56. Nc4+ {[%emt 0:00:00]} Kc1 {[%emt 0:00:00]} 57. Ne3 {[%emt 0:00:00] Hoping for b4.} Kb2 {[%emt 0:00:06] Weighted Error Value: White=0.12 (very precise) /Black=0.12 (very precise)} 1/2-1/2

[Event "Charlotte IM-C May 2022"]
[Site "Charlotte"]
[Date "2022.05.05"]
[Round "2.2"]
[White "Canty, James"]
[Black "Fawole, John Oyeyemi"]
[Result "1-0"]
[ECO "B99"]
[WhiteElo "2225"]
[BlackElo "2118"]
[Annotator "TA"]
[PlyCount "55"]
[EventDate "2022.05.04"]
[EventType "tourn"]
[EventCountry "USA"]
[SourceTitle "playchess.com"]
[Source "ChessBase"]
[SourceQuality "1"]
[TimeControl "5400+30"]

{[%evp 24,55,3,-30,0,-37,-33,-27,92,90,79,93,90,56,62,0,678,672,695,668,2681,2708,29983,29985,29981,6325,29986,29987,29993,29994,29996,29997,29997,29997]} 1. e4 {[%emt 0:00:30]} c5 {[%emt 0:05:35]} 2. Nf3 {[%emt 0:00:00]} d6 {[%emt 0:00:14]} 3. d4 {[%emt 0:00:00]} cxd4 {[%emt 0:00:07]} 4. Nxd4 {[%emt 0:00:00]} Nf6 {[%emt 0:00:37]} 5. Nc3 {[%emt 0:00:00]} a6 {[%emt 0:00:06]} 6. Bg5 {[%emt 0:00:00]} e6 {[%emt 0:00:14]} 7. f4 {[%emt 0:00:12]} Be7 {[%emt 0:00:55]} 8. Qf3 {[%emt 0:00:07]} Qc7 {[%emt 0:00:43]} 9. O-O-O {[%emt 0:00:11]} Nbd7 {[%emt 0:01:22]} 10. g4 {[%emt 0:00:59][%cal Bg2g4,Bg4g5][%mdl 32]} b5 {[%emt 0:00:21][%cal Bb7b5,Bb5b4][%mdl 32]} 11. Bxf6 {[%emt 0:01:17]} Nxf6 {[%emt 0:00:12]} 12. g5 {[%emt 0:00:28]} Nd7 {[%emt 0:00:07]} 13. Bh3 {[%emt 0:06:02][%cal Oh3e6] Black must now prevent Bxe6!} Nb6 {[%emt 0:03:27] B99: Sicilian Najdorf: 6 Bg5 e6 7 f4 Be7 8 Qf3 Qc7 9 0-0-0 Nbd7.} (13... b4 $5 {[%cal Rb4c3]} 14. Nce2 Bb7 $11) 14. Rhg1 {[%emt 0:05:11]} b4 $1 {[%emt 0:02:07]} 15. Nce2 {[%emt 0:01:26] [#]} d5 $146 {[%emt 0:03:22] [#]} (15... g6 $11) ({Predecessor:} 15... e5 16. Nf5 Bxf5 17. exf5 Rc8 18. Qd3 f6 19. Kb1 a5 20. Ng3 Qc4 21. Nh5 O-O 22. Qxc4+ Nxc4 23. gxf6 Bxf6 24. Nxg7 {1-0 (48) Nilsson,Z-Vely Tel Aviv 1964}) 16. exd5 $1 $16 {[%emt 0:01:54]} exd5 {[%emt 0:13:05]} 17. f5 {[%emt 0:00:09] Strongly threatening f6.} g6 {[%emt 0:06:34]} 18. Nf4 {[%emt 0:07:03] aiming for f6.} O-O {[%emt 0:03:00]} 19. Nh5 {[%emt 0:01:31] White is more active.} Bc5 $2 {[%emt 0:11:08][%mdl 8192]} (19... gxh5 $11 20. Qxh5 Kh8) 20. Nf6+ $18 {[%emt 0:00:20] Pair of Knights!} Kg7 {[%emt 0:00:58]} 21. Qg4 {[%emt 0:00:37] Qh4 is the strong threat.} Be7 {[%emt 0:34:00]} 22. Qh4 {[%emt 0:00:43][%csl Gf6][%cal Rh4h7]} h5 {[%emt 0:01:13] [#]} 23. Nxh5+ $1 {[%emt 0:01:43][%mdl 512]} gxh5 {[%emt 0:00:24]} 24. f6+ {[%emt 0:00:04]} Kg6 {[%emt 0:00:44]} 25. Bf1 {[%emt 0:00:50] White mates.} Bf5 {[%emt 0:04:57]} 26. Nxf5 {[%emt 0:00:07]} Kxf5 {[%emt 0:00:26]} 27. Qh3+ {[%emt 0:00:08]} Ke4 {[%emt 0:00:41]} 28. Qd3+ {[%emt 0:00:20] Weighted Error Value: White=0.10 (very precise) /Black=1.13} 1-0

[Event "Charlotte IM-C May 2022"]
[Site "Charlotte"]
[Date "2022.05.05"]
[Round "2.3"]
[White "Zapata, Alonso"]
[Black "Andrews, Todd"]
[Result "0-1"]
[ECO "C06"]
[WhiteElo "2367"]
[BlackElo "2209"]
[Annotator "TA"]
[PlyCount "81"]
[EventDate "2022.05.04"]
[EventType "tourn"]
[EventCountry "USA"]
[SourceTitle "playchess.com"]
[Source "ChessBase"]
[SourceQuality "1"]
[TimeControl "5400+30"]

{[%evp 26,81,20,16,37,20,46,51,56,47,42,42,42,33,17,31,27,30,44,54,158,4,4,0,8,0,0,0,83,77,88,79,88,29,29,0,0,0,0,0,0,0,15,5,5,15,19,-193,-189,-204,-197,-197,-195,-180,-191,-187,-191,-268]} 1. e4 {[%emt 0:04:39]} e6 {[%emt 0:00:07]} 2. d4 {[%emt 0:00:09]} d5 {[%emt 0:00:02]} 3. Nd2 {[%emt 0:00:14]} Nf6 {[%emt 0:00:10]} 4. e5 {[%emt 0:00:12]} Nfd7 {[%emt 0:00:02]} 5. c3 {[%emt 0:00:18]} c5 {[%emt 0:00:16]} 6. Ndf3 {[%emt 0:00:19]} Nc6 {[%emt 0:00:23]} 7. Bd3 {[%emt 0:00:05]} cxd4 {[%emt 0:00:41]} 8. cxd4 {[%emt 0:00:06]} f6 {[%emt 0:01:08]} 9. exf6 {[%emt 0:00:29]} Nxf6 {[%emt 0:00:14]} 10. Ne2 {[%emt 0:00:16]} Qc7 {[%emt 0:00:12]} 11. O-O {[%emt 0:02:05]} Bd6 {[%emt 0:00:15]} 12. Nc3 {[%emt 0:00:45]} a6 {[%emt 0:00:34]} 13. Bg5 {[%emt 0:04:49]} O-O {[%emt 0:00:19]} 14. Rc1 {[%emt 0:00:45]} h6 {[%emt 0:12:29] is the legacy move (14...Bd7). C06: French Tarrasch: 3...Nf6 4 e5 Nfd7 5 Bd3 main lines.} 15. Bh4 {[%emt 0:00:15]} Bf4 {[%emt 0:01:29]} 16. Rc2 {[%emt 0:03:37]} Qf7 {[%emt 0:06:03] [#] White is slightly better.} 17. Ne2 $146 {[%emt 0:06:56]} ({Predecessor:} 17. Bxf6 Qxf6 18. Re2 Bd7 19. Bb1 g5 20. Qd3 Qg7 21. Ne5 Bxe5 22. dxe5 Rf7 23. Nxd5 Nxe5 {½-½ (47) Heinrich,L (1952)-Braun,T (2062) Bayern 2019}) 17... Bb8 {[%emt 0:04:45]} 18. Bg3 {[%emt 0:04:26]} Bd7 {[%emt 0:06:42]} 19. Rc3 {[%emt 0:11:02]} Ne4 {[%emt 1:04:09]} 20. Bxe4 {[%emt 0:01:58]} dxe4 {[%emt 0:00:00]} 21. Nd2 {[%emt 0:00:13]} e5 {[%emt 0:00:00]} 22. dxe5 {[%emt 0:10:40]} Bxe5 {[%emt 0:00:00] [#]} ({Better is} 22... Nxe5 $14 23. Nxe4 Bc6) 23. Bxe5 $2 {[%emt 0:12:56]} (23. Rxc6 $1 $16 {[%mdl 512] Hoping for Rb6.} Bxc6 24. Bxe5) 23... Nxe5 $11 {[%emt 0:00:00]} 24. Nxe4 {[%emt 0:00:15]} Bc6 {[%emt 0:00:00]} 25. Qb1 {[%emt 0:05:41]} Rad8 $1 {[%emt 0:00:00]} ({Resist} 25... Qg6 26. N2g3 $14) 26. N2g3 {[%emt 0:14:54]} Qf4 {[%emt 0:00:00]} (26... Bb5 $11) 27. f3 $16 {[%emt 0:01:56]} Qh4 {[%emt 0:00:00]} 28. Qc2 {[%emt 0:07:23]} Kh8 {[%emt 0:00:00]} 29. Rc5 {[%emt 0:01:22]} (29. Rc1 $16) 29... Nd3 $11 {[%emt 0:00:00]} 30. Rh5 {[%emt 0:00:28]} Qf4 {[%emt 0:00:00] And now ...Bxe4 would win.} 31. h3 {[%emt 0:02:56]} Qe3+ {[%emt 0:00:00]} 32. Kh2 {[%emt 0:00:41]} Bxe4 {[%emt 0:01:41]} 33. Nxe4 {[%emt 0:00:16]} Rc8 {[%emt 0:00:01][%cal Bd8c8,Bc8c2,Bc2g2][%mdl 32]} 34. Qb3 {[%emt 0:01:07]} Qe2 $1 {[%emt 0:00:12][%csl LRb2,LRf1]} 35. Ng3 {[%emt 0:00:50]} Qc2 {[%emt 0:01:25] White must now prevent ...Nf4.} 36. Kg1 $2 {[%emt 0:01:47] [#] Loses the game.} (36. Qb6 $11 {and White has nothing to worry.}) 36... Nf4 $1 $19 {[%emt 0:01:09][%csl Gf4][%cal Rc2g2] Black is clearly better.} 37. Qxc2 {[%emt 0:00:54]} Rxc2 {[%emt 0:00:02]} 38. Rf5 {[%emt 0:01:07]} Rxg2+ {[%emt 0:00:54]} 39. Kh1 {[%emt 0:00:00]} Rxf5 {[%emt 0:00:13]} 40. Nxf5 {[%emt 0:00:03]} Rxb2 {[%emt 0:00:08]} 41. Rd1 {[%emt 0:02:06] Weighted Error Value: White=0.28 (precise) /Black=0.13 (very precise)} (41. Rg1 $142) 0-1

[Event "Charlotte IM-C May 2022"]
[Site "Charlotte"]
[Date "2022.05.05"]
[Round "2.4"]
[White "Johnson, Donald"]
[Black "King, Alexander"]
[Result "0-1"]
[ECO "B62"]
[WhiteElo "2102"]
[BlackElo "2283"]
[Annotator "TA"]
[PlyCount "60"]
[EventDate "2022.05.04"]
[EventType "tourn"]
[EventCountry "USA"]
[SourceTitle "playchess.com"]
[Source "ChessBase"]
[SourceQuality "1"]
[TimeControl "5400+30"]

{[%evp 15,59,27,16,8,15,0,12,20,76,62,57,23,23,0,0,-25,0,-9,28,0,0,5,74,70,70,60,57,3,13,-100,-97,-285,-289,-293,-293,-488,-488,-480,-473,-475,-477,-29997,-29998,-29998,-29999,-29999]} 1. e4 {[%emt 0:04:33]} c5 {[%emt 0:00:24]} 2. Nf3 {[%emt 0:00:44]} d6 {[%emt 0:00:09]} 3. d4 {[%emt 0:00:03]} cxd4 {[%emt 0:00:09]} 4. Nxd4 {[%emt 0:00:02]} Nf6 {[%emt 0:00:14]} 5. Nc3 {[%emt 0:00:02]} Nc6 {[%emt 0:01:10]} 6. Bg5 {[%emt 0:00:04]} e6 {[%emt 0:00:48]} 7. Qd3 {[%emt 0:00:45]} Be7 {[%emt 0:01:58] Recently 7...Bd7 got a lot of attention.} 8. O-O-O {[%emt 0:00:41]} O-O {[%emt 0:01:43]} 9. f4 {[%emt 0:00:46] B62: Sicilian: Richter-Rauzer: 6...e6: Unusual White 7th moves.} Qb6 {[%emt 0:08:23] [#]} 10. Nb3 $146 ({Predecessor:} 10. Qb5 Qc7 11. e5 a6 12. Qe2 Nxd4 13. Rxd4 dxe5 14. Rc4 Qd8 15. fxe5 Nd5 16. Bxe7 Nxe7 {½-½ (49) Mosadeghpour,M (2474)-Draskovic,L (2484) Ayvalik 2022}) 10... a5 {[%emt 1:20:32]} 11. Nd2 {[%emt 1:28:20] The position is equal.} Rd8 {[%emt 0:00:00]} (11... Qc5 $11 {remains equal.}) 12. Nc4 $16 Qc5 {[%emt 0:00:00]} 13. Na4 Qf2 {[%emt 0:00:00] ...b5 is the strong threat.} 14. Ne3 (14. Qf3 {is more appropriate.} Qxf3 15. gxf3) 14... h6 $11 15. Bxf6 {[%emt 0:00:00]} Bxf6 {[%emt 0:00:00]} 16. g3 $1 {[%emt 0:00:00]} Nb4 {[%emt 0:00:00]} 17. Qe2 {[%emt 0:00:00]} Qxe2 {[%emt 0:00:00]} 18. Bxe2 {[%emt 0:00:00]} Nxa2+ {[%emt 0:00:00]} (18... b5 $11 19. Nb6 (19. Bxb5 Nxa2+ 20. Kb1 Rb8 $11) 19... Rb8 20. Nxc8 Rdxc8) 19. Kb1 $16 {[%emt 0:00:00] Threatens to win with Nb6.} Nb4 $1 {[%emt 0:00:00][%cal Ob7b6]} 20. Nb6 {[%emt 0:04:30]} Rb8 {[%emt 0:00:00]} 21. Nec4 {[%emt 0:00:00]} (21. c3 $14 Nc6 22. Rd2) 21... d5 $11 {[%emt 0:00:00] [#]} 22. exd5 {[%emt 0:00:00]} (22. c3 $1 $11) 22... exd5 $17 {[%emt 0:00:00]} 23. Nxa5 {[%emt 0:00:00] White does not recover from this.} (23. Ne3 $17) 23... Bf5 $19 {[%emt 0:00:00]} 24. Rd2 {[%emt 0:00:00]} Rd6 {[%emt 0:00:00]} 25. Na4 {[%emt 0:00:00]} (25. Nac4 Re6 26. Nd7 dxc4 27. Nxb8 Nxc2 28. Bg4 Na3+ 29. Ka2 Bxg4 30. Kxa3 Re3+ 31. Ka4 b5+ 32. Kxb5 Rb3+ 33. Kxc4 Rxb8 34. b4) 25... Ra8 {[%emt 0:01:43][%cal Bb8a8,Ba8a4,Ba4a2,Ba2b2,Bb2a2,Ba2a1][%mdl 32]} 26. Nxb7 {[%emt 0:00:51] [#]} Rxa4 $1 {[%emt 0:03:56]} 27. Nxd6 {[%emt 0:00:18] [#]} Ra2 $1 {[%emt 0:00:01]} 28. Nxf5 {[%emt 0:02:12]} (28. Bh5 $19 Rxb2+ 29. Kc1 Bxc2 30. Bxf7+ Kf8 31. Re2 Na2+ 32. Kd2 Be4+ 33. Ke1 Rb1+ 34. Kd2 Rb2+ 35. Ke3 Rb3+ 36. Kf2 Bd4+ 37. Ke1 Rb1+ 38. Kd2 Rb2+ 39. Ke1 Rb1+ 40. Kd2 Rb2+ 41. Ke1 Rb1+) 28... Rxb2+ {[%emt 0:00:10] Black mates.} 29. Ka1 {[%emt 0:00:08]} Ra2+ {[%emt 0:00:09]} 30. Kb1 {[%emt 0:00:01]} Ra1# {[%emt 0:00:33] Weighted Error Value: White=0.68/Black=0.12 (very precise)} 0-1

[Event "Charlotte IM-C May 2022"]
[Site "Charlotte"]
[Date "2022.05.05"]
[Round "2.5"]
[White "Wang, Tianqi"]
[Black "Andrianov, Nikolai"]
[Result "1/2-1/2"]
[ECO "A30"]
[WhiteElo "2331"]
[BlackElo "2317"]
[Annotator "TA"]
[PlyCount "39"]
[EventDate "2022.05.04"]
[EventType "tourn"]
[EventCountry "USA"]
[SourceTitle "playchess.com"]
[Source "ChessBase"]
[SourceQuality "1"]
[TimeControl "5400+30"]

{[%evp 12,39,-20,-45,-31,-33,-5,-9,0,-12,-6,-8,0,-18,-6,-6,0,0,0,-38,0,-37,-35,-47,0,0,0,0,0,-54]} 1. Nf3 {[%emt 0:00:10]} Nf6 {[%emt 0:03:09]} 2. c4 {[%emt 0:00:06]} c5 {[%emt 0:00:53]} 3. b3 {[%emt 0:00:11]} g6 {[%emt 0:00:44]} 4. Bb2 {[%emt 0:00:06]} Bg7 {[%emt 0:00:02]} 5. e3 {[%emt 0:00:07]} O-O {[%emt 0:00:34]} 6. Qc2 {[%emt 0:00:19]} Nc6 {[%emt 0:01:09]} 7. a3 {[%emt 0:00:06]} d6 {[%emt 0:08:58] A30: Symmetrical English: Double Fianchetto and Hedgehog.} 8. Be2 {[%emt 0:00:53]} e5 {[%emt 0:01:19]} 9. d3 {[%emt 0:00:06] Inhibits e4.} a6 {[%emt 0:01:49]} 10. Nc3 {[%emt 0:00:32]} Rb8 {[%emt 0:00:26]} 11. O-O {[%emt 0:02:45]} b5 {[%emt 0:01:41] [#]} 12. Ne4 $146 {[%emt 0:00:57]} ({Predecessor:} 12. cxb5 axb5 13. Ne4 Nxe4 14. dxe4 Qb6 15. Rfd1 Rd8 16. Rac1 Bb7 17. h3 Bf8 18. Nd2 {½-½ (67) Szabados,K (2103)-Vranic,L (2185) Subotica 2017}) 12... bxc4 {[%emt 0:24:57]} 13. bxc4 {[%emt 0:00:25]} Nxe4 {[%emt 0:00:52]} 14. dxe4 {[%emt 0:00:06]} f5 {[%emt 0:00:22]} 15. Bc3 {[%emt 0:02:34]} f4 {[%emt 0:02:20]} 16. Rab1 {[%emt 0:01:12]} fxe3 {[%emt 0:08:00]} 17. fxe3 {[%emt 0:01:14]} Bh6 {[%emt 0:00:19]} (17... Rxb1 $15 {was preferrable.} 18. Rxb1 Qc7) 18. Qd3 $11 {[%emt 0:00:14] [#] Hoping for Qd5+. The position is equal.} Be6 {[%emt 0:00:59] Prevents Qd5.} 19. Rxb8 {[%emt 0:02:29]} Qxb8 {[%emt 0:00:18]} 20. Nd2 {[%emt 0:03:18] Weighted Error Value: White=0.12 (very precise) /Black=0.11 (very precise)} ({White should try} 20. Rb1 $11 Qc7 21. Rd1) 1/2-1/2

[Event "Charlotte IM-C May 2022"]
[Site "Charlotte"]
[Date "2022.05.06"]
[Round "3.2"]
[White "King, Alexander"]
[Black "Wang, Tianqi"]
[Result "1/2-1/2"]
[ECO "E54"]
[WhiteElo "2283"]
[BlackElo "2331"]
[Annotator "TA"]
[PlyCount "87"]
[EventDate "2022.05.04"]
[EventType "tourn"]
[EventCountry "USA"]
[SourceTitle "playchess.com"]
[Source "ChessBase"]
[SourceQuality "1"]
[TimeControl "5400+30"]

{[%evp 24,87,3,6,2,0,13,18,11,18,63,27,39,33,33,21,17,17,21,10,6,13,39,39,39,43,43,35,31,39,75,3,3,8,7,0,16,0,0,0,0,0,0,0,12,8,31,8,59,8,8,8,8,8,8,0,0,0,0,0,0,0,0,0,0,0]} 1. d4 {[%emt 0:00:03]} Nf6 {[%emt 0:00:07]} 2. c4 {[%emt 0:00:06]} e6 {[%emt 0:00:06]} 3. Nc3 {[%emt 0:02:11]} Bb4 {[%emt 0:00:16]} 4. e3 {[%emt 0:00:05]} O-O {[%emt 0:00:06]} 5. Bd3 {[%emt 0:00:03]} d5 {[%emt 0:02:24]} 6. Nf3 {[%emt 0:00:44]} dxc4 {[%emt 0:00:52]} 7. Bxc4 {[%emt 0:00:06]} c5 {[%emt 0:00:09]} 8. O-O {[%emt 0:00:05]} cxd4 {[%emt 0:00:20]} 9. exd4 {[%emt 0:00:05]} b6 {[%emt 0:00:36]} 10. Bg5 {[%emt 0:00:06]} Bb7 {[%emt 0:04:26]} 11. Re1 {[%emt 0:01:34]} Nbd7 {[%emt 0:02:27]} 12. Rc1 {[%emt 0:00:13]} Rc8 {[%emt 0:01:14]} 13. Qb3 {[%emt 0:00:55]} Bxc3 {[%emt 0:00:40] 13...Be7 is vanishing. E54: Nimzo-Indian: Rubinstein: Main Line: 7...dxc4 8 Bxc4.} 14. Rxc3 {[%emt 0:01:04]} Bd5 {[%emt 0:01:44]} (14... h6 $5 {[%cal Rh6g5]} 15. Bh4 a6 $11) 15. Bxd5 {[%emt 0:00:36]} Rxc3 {[%emt 0:02:03]} 16. Qxc3 {[%emt 0:00:17]} exd5 {[%emt 0:13:20] [#]} 17. Ne5 $146 {[%emt 0:04:49] White is much more active.} ({Predecessor:} 17. Rc1 h6 18. Bxf6 Nxf6 19. Qc7 Re8 20. Kf1 Qe7 21. Qxe7 Rxe7 22. Rc8+ Kh7 23. h4 {½-½ (54) Lobron,E (2500)-Hunt,H (2406) Stockholm 2003}) 17... Re8 {[%emt 0:17:15]} 18. h3 {[%emt 0:12:08]} h6 {[%emt 0:00:32]} 19. Bxf6 {[%emt 0:03:10]} Nxf6 {[%emt 0:02:41]} 20. Rc1 {[%emt 0:02:41][%cal Be1c1,Bc1c7,Bc7a7,Ba7a8][%mdl 32]} Nd7 {[%emt 0:11:29]} 21. Nf3 {[%emt 0:07:43]} Nf8 {[%emt 0:02:57]} 22. Qc7 {[%emt 0:05:29]} Qxc7 {[%emt 0:07:09]} 23. Rxc7 $11 {[%emt 0:00:15][%mdl 4096] Endgame KRN-KRN} Re2 {[%emt 0:00:02]} 24. Rxa7 {[%emt 0:00:21]} Rxb2 {[%emt 0:00:40]} 25. Ra8 {[%emt 0:02:34]} f6 {[%emt 0:07:31] Inhibits Ne5.} 26. Nh4 {[%emt 0:01:50] [#] Hoping for Ng6.} Kf7 {[%emt 0:00:19] Prevents Ng6.} 27. Nf5 {[%emt 0:00:53]} ({Better is} 27. Ra7+ $16 Ke6 28. Rxg7) 27... Ne6 {[%emt 0:00:17]} 28. Ra7+ {[%emt 0:01:16]} Kf8 $1 {[%emt 0:00:27]} 29. a4 {[%emt 0:05:43]} Rb4 {[%emt 0:01:19]} 30. a5 {[%emt 0:03:39]} bxa5 {[%emt 0:00:26]} 31. Rxa5 {[%emt 0:00:12]} Nxd4 {[%emt 0:08:03]} 32. Ra8+ {[%emt 0:04:05]} Kf7 {[%emt 0:00:01]} 33. Ra7+ {[%emt 0:00:17]} Kf8 {[%emt 0:00:01]} 34. Nxg7 {[%emt 0:02:08]} Rb6 {[%emt 0:04:19]} 35. Rd7 {[%emt 0:03:39]} Rb1+ {[%emt 0:01:06]} 36. Kh2 {[%emt 0:00:33]} Rb2 $1 {[%emt 0:00:03] The position is equal.} 37. Nh5 {[%emt 0:06:15]} Rxf2 {[%emt 0:00:18]} 38. Rxd5 {[%emt 0:00:18]} Nc2 {[%emt 0:00:46]} 39. Rd8+ {[%emt 0:02:24]} Ke7 {[%emt 0:00:43]} 40. Rg8 {[%emt 0:01:10]} Ne3 {[%emt 0:00:44]} 41. Rg7+ {[%emt 0:02:56]} Kf8 {[%emt 0:00:12]} 42. Rg6 {[%emt 0:00:11][%csl LRf6,LRh6]} Kf7 {[%emt 0:00:07]} 43. Rg7+ {[%emt 0:00:28]} Kf8 {[%emt 0:00:01]} 44. Rg6 {[%emt 0:01:04][%csl LRf6,LRh6] Weighted Error Value: White=0.09 (flawless) /Black=0.05 (flawless)} 1/2-1/2